bitfinex/quotes_BTCUSD_20241215
["timestamp","ask_amount","ask_price","bid_price","bid_amount"]
[1734237548620,8.6e-07,102370.0,102360.0,0.66641034]
[1734237549810,8.6e-07,102370.0,102360.0,0.81641034]
[1734237552947,8.6e-07,102370.0,102360.0,0.83939959]
[1734237553153,8.6e-07,102370.0,102360.0,0.81641034]
[1734237554167,8.6e-07,102370.0,102360.0,0.91546437]
[1734237554354,8.6e-07,102370.0,102360.0,0.95450937]
[1734237555643,8.6e-07,102370.0,102360.0,0.73451034]
[1734237555869,8.6e-07,102370.0,102360.0,0.68661034]
[1734237556912,8.6e-07,102370.0,102360.0,0.76921034]
[1734237557911,8.6e-07,102370.0,102360.0,0.91826437]
[1734237558501,8.6e-07,102370.0,102360.0,0.95560146]
[1734237559549,8.6e-07,102370.0,102360.0,0.91826437]
[1734237560235,8.6e-07,102370.0,102360.0,0.94125362]
[1734237560477,0.0802,102390.0,102380.0,0.19535]
[1734237560679,0.0802,102390.0,102380.0,0.48064621]
[1734237560886,0.0802,102390.0,102380.0,0.48284185]
[1734237561734,0.08036435,102390.0,102380.0,0.48284185]
[1734237562560,0.08036435,102390.0,102380.0,0.61716144]
[1734237562940,0.08036435,102390.0,102380.0,0.48284185]
[1734237564477,0.08010935,102390.0,102380.0,0.48284185]
[1734237568591,3.5e-07,102390.0,102380.0,5.71716144]
[1734237568803,3.5e-07,102390.0,102380.0,0.74576144]
[1734237569015,3.5e-07,102390.0,102380.0,0.90197681]
[1734237569673,3.5e-07,102390.0,102380.0,0.91399052]
[1734237573434,5.5e-07,102390.0,102380.0,0.91399052]
[1734237575307,5.5e-07,102390.0,102380.0,0.9388385]
[1734237575509,5.5e-07,102390.0,102380.0,0.89890677]
[1734237575904,5.5e-07,102390.0,102380.0,0.81273649]
[1734237576311,5.5e-07,102390.0,102380.0,0.89890677]
[1734237577325,5.5e-07,102390.0,102380.0,0.89890659]
[1734237578107,5.5e-07,102390.0,102380.0,0.91006827]
[1734237578303,5.5e-07,102390.0,102380.0,1.18837745]
[1734237579185,5.5e-07,102390.0,102380.0,1.35612905]
[1734237581341,0.0799,102410.0,102400.0,0.05]
[1734237581540,0.0799,102410.0,102400.0,0.660339]
[1734237581673,0.0799,102410.0,102400.0,0.6628975]
[1734237582471,0.0799,102410.0,102400.0,0.57488064]
[1734237583058,0.0799,102410.0,102400.0,0.6628975]
[1734237584086,0.0799,102410.0,102400.0,0.6128975]
[1734237584467,0.17895403,102410.0,102400.0,0.52488064]
[1734237585466,0.17912623,102410.0,102400.0,0.52488064]
[1734237586425,0.17912623,102410.0,102400.0,0.6128975]
[1734237586794,0.0800722,102410.0,102400.0,5.6628975]
[1734237588223,0.0001722,102410.0,102400.0,5.6628975]
[1734237588484,2e-07,102410.0,102400.0,5.21455153]
[1734237588674,2e-07,102410.0,102400.0,0.83955153]
[1734237589180,0.0432212,102430.0,102410.0,5.25]
[1734237589388,0.0490726,102440.0,102430.0,0.345255]
[1734237589604,0.0490726,102440.0,102430.0,3.41637474]
[1734237589605,0.00072066,102440.0,102430.0,3.41637474]
[1734237589810,0.00072066,102440.0,102430.0,3.28237474]
[1734237590064,0.00072066,102440.0,102430.0,2.43988957]
[1734237590514,0.00072066,102440.0,102430.0,2.48988957]
[1734237592227,0.00072066,102440.0,102430.0,2.3558297]
[1734237592643,0.00072066,102440.0,102430.0,2.48988957]
[1734237593969,0.00072066,102440.0,102430.0,2.3558297]
[1734237595345,0.00072066,102440.0,102430.0,1.0998297]
[1734237595557,0.07992066,102440.0,102430.0,0.6508297]
[1734237596166,0.07992066,102440.0,102430.0,0.7008297]
[1734237596365,0.07992066,102440.0,102430.0,0.6508297]
[1734237596712,0.07992066,102440.0,102430.0,0.7008297]
[1734237597117,0.07992066,102440.0,102430.0,0.6508297]
[1734237597527,0.07992066,102440.0,102430.0,0.6228297]
[1734237597916,0.07992066,102440.0,102430.0,0.6728297]
[1734237598513,0.07992066,102440.0,102430.0,0.5328297]
[1734237598663,0.07992066,102440.0,102430.0,2.8798297]
[1734237598878,0.07992066,102440.0,102430.0,2.5178297]
[1734237600387,0.07992066,102440.0,102430.0,1.7268297]
[1734237600586,0.07992066,102440.0,102430.0,0.6118297]
[1734237600709,0.07992066,102440.0,102430.0,0.4828297]
[1734237601722,0.12582066,102440.0,102430.0,0.4828297]
[1734237603694,0.22487469,102440.0,102430.0,0.3328297]
[1734237604807,0.07992066,102440.0,102430.0,1.1768297]
[1734237605051,0.00072066,102440.0,102430.0,1.31088957]
[1734237605239,0.00072066,102440.0,102430.0,1.48387882]
[1734237605412,0.00072066,102440.0,102430.0,1.46088957]
[1734237605812,0.00072066,102440.0,102430.0,1.3268297]
[1734237606647,0.00072066,102440.0,102430.0,1.3768297]
[1734237607720,0.00072066,102440.0,102430.0,1.3268297]
[1734237607842,0.00072066,102440.0,102430.0,1.3768297]
[1734237610564,6.6e-07,102440.0,102430.0,1.3768297]
[1734237610774,6.6e-07,102440.0,102430.0,0.8325237]
[1734237611369,6.6e-07,102440.0,102430.0,0.82047882]
[1734237611606,6.6e-07,102440.0,102430.0,0.98157773]
[1734237612448,6.6e-07,102440.0,102430.0,0.9465436]
[1734237613593,6.406e-05,102460.0,102450.0,0.47927687]
[1734237613799,0.00022837,102460.0,102450.0,4.22727687]
[1734237614003,0.00022837,102460.0,102450.0,4.2307626]
[1734237615066,0.00022837,102460.0,102450.0,0.8407626]
[1734237615191,0.0992824,102460.0,102450.0,0.61682247]
[1734237615399,0.0992824,102460.0,102450.0,1.00782247]
[1734237615400,0.1768824,102460.0,102450.0,1.00782247]
[1734237615884,0.1768824,102460.0,102450.0,0.61682247]
[1734237616214,0.1768824,102460.0,102450.0,5.66682247]
[1734237617313,0.00022837,102460.0,102450.0,5.66682247]
[1734237618575,0.00022837,102460.0,102450.0,0.61682247]
[1734237618695,0.00022837,102460.0,102450.0,5.66682247]
[1734237621926,9.7e-07,102470.0,102450.0,5.9610935]
[1734237622139,9.7e-07,102470.0,102460.0,5.33503561]
[1734237622346,9.7e-07,102470.0,102460.0,0.47925787]
[1734237622586,9.7e-07,102470.0,102460.0,0.48272713]
[1734237623438,9.7e-07,102470.0,102460.0,0.61352713]
[1734237626441,9.7e-07,102470.0,102460.0,0.84664103]
[1734237628539,9.7e-07,102470.0,102460.0,0.61352713]
[1734237628742,0.08130097,102470.0,102460.0,0.33272713]
[1734237628941,0.229555,102470.0,102460.0,0.19866726]
[1734237629121,0.229555,102470.0,102460.0,0.41634276]
[1734237630194,0.252555,102470.0,102460.0,0.28228289]
[1734237630368,0.252555,102470.0,102460.0,0.00863663]
[1734237630630,0.252555,102470.0,102460.0,0.20383463]
[1734237631394,0.497734,102470.0,102460.0,0.00863663]
[1734237631599,0.58498951,102470.0,102460.0,0.00863663]
[1734237631806,0.71587277,102470.0,102460.0,0.00411568]
[1734237632063,0.66587277,102470.0,102460.0,0.00411568]
[1734237632239,0.84089744,102470.0,102460.0,0.00411568]
[1734237632433,1.05932157,102470.0,102460.0,0.00411568]
[1734237632742,0.97195192,102470.0,102460.0,0.00411568]
[1734237633097,0.98276407,102470.0,102460.0,0.00411568]
[1734237633638,1.03276407,102470.0,102460.0,0.00411568]
[1734237634057,0.83758507,102470.0,102460.0,0.00411568]
[1734237635234,0.83858507,102470.0,102460.0,0.00411568]
[1734237635456,0.78858507,102470.0,102460.0,0.19931368]
[1734237635616,0.78858507,102470.0,102460.0,0.25830348]
[1734237635821,0.87603286,102470.0,102460.0,0.25830348]
[1734237636027,0.90603286,102470.0,102460.0,0.25830348]
[1734237636587,0.51286942,102470.0,102460.0,0.25830348]
[1734237636943,0.76306942,102470.0,102460.0,0.40830348]
[1734237637155,0.63201494,102470.0,102460.0,0.40830348]
[1734237637568,0.63101494,102470.0,102460.0,0.40830348]
[1734237638187,0.68101494,102470.0,102460.0,0.15411568]
[1734237638365,0.68101494,102470.0,102460.0,0.34931368]
[1734237639170,0.81206942,102470.0,102460.0,0.34931368]
[1734237639599,0.68101494,102470.0,102460.0,0.34931368]
[1734237639810,0.59356715,102470.0,102460.0,0.34931368]
[1734237639981,0.59356715,102470.0,102460.0,0.42330238]
[1734237640181,0.68101494,102470.0,102460.0,0.34931368]
[1734237642706,0.68101494,102470.0,102460.0,0.15411568]
[1734237642913,0.68101494,102470.0,102460.0,0.00411568]
[1734237642914,0.87619394,102470.0,102460.0,0.00411568]
[1734237643116,1.2660476,102470.0,102460.0,0.00411568]
[1734237643321,1.26296407,102470.0,102460.0,0.00559312]
[1734237643526,1.13190959,102470.0,102460.0,0.00559312]
[1734237643728,0.2019,102460.0,102450.0,0.15016431]
[1734237643934,0.71475801,102460.0,102450.0,0.15016431]
[1734237644172,0.195217,102450.0,102440.0,0.0010693]
[1734237644380,0.05,102440.0,102430.0,8.61e-05]
[1734237644583,0.74639003,102440.0,102430.0,8.61e-05]
[1734237645415,0.1045,102430.0,102420.0,0.3856211]
[1734237645616,0.20355403,102430.0,102420.0,0.44371191]
[1734237645823,0.50375403,102430.0,102410.0,0.1962726]
[1734237646048,0.55115403,102420.0,102410.0,0.1962726]
[1734237646455,0.55115403,102420.0,102410.0,0.195281]
[1734237647341,0.55115403,102420.0,102410.0,0.19582906]
[1734237647558,0.55115403,102420.0,102410.0,0.25447187]
[1734237648192,0.55115403,102420.0,102410.0,0.34582906]
[1734237649477,0.55115403,102420.0,102410.0,0.35144938]
[1734237651190,0.50115403,102420.0,102410.0,0.35144938]
[1734237651412,0.51169304,102420.0,102410.0,0.35144938]
[1734237651812,0.54169304,102420.0,102410.0,0.35144938]
[1734237652039,0.54169304,102420.0,102410.0,0.42565422]
[1734237653083,0.49429304,102420.0,102410.0,0.42565422]
[1734237655026,0.24409304,102420.0,102410.0,0.42565422]
[1734237655530,0.16259304,102420.0,102410.0,0.42565422]
[1734237656539,0.16259304,102420.0,102410.0,0.42574042]
[1734237656838,0.16259304,102420.0,102410.0,0.35153558]
[1734237658242,0.16557275,102420.0,102410.0,0.35153558]
[1734237659394,0.21557275,102420.0,102410.0,0.35153558]
[1734237659575,0.34079304,102420.0,102410.0,0.35153558]
[1734237660922,0.59099304,102420.0,102410.0,0.35153558]
[1734237661693,0.59099304,102420.0,102410.0,0.42574884]
[1734237662095,0.59099304,102420.0,102410.0,0.35153558]
[1734237663052,0.59391591,102420.0,102410.0,0.35153558]
[1734237663485,0.58891591,102420.0,102410.0,0.35153558]
[1734237664748,0.58891591,102420.0,102410.0,0.15625458]
[1734237664950,0.58891591,102420.0,102410.0,0.00625458]
[1734237665168,0.61804978,102420.0,102410.0,0.00625458]
[1734237666590,0.48398991,102420.0,102410.0,0.00625458]
[1734237669652,0.33871591,102420.0,102410.0,0.00625458]
[1734237669788,0.33871591,102420.0,102410.0,0.20154758]
[1734237670222,0.33871591,102420.0,102410.0,0.04594044]
[1734237670442,0.48398991,102420.0,102410.0,0.00625458]
[1734237670766,0.61804978,102420.0,102410.0,0.00625458]
[1734237670926,0.66804978,102420.0,102410.0,0.00625458]
[1734237671294,0.75514796,102420.0,102410.0,0.00625458]
[1734237673373,0.88579524,102420.0,102410.0,0.00625458]
[1734237673777,0.88679524,102420.0,102410.0,0.00625458]
[1734237674205,1.06099161,102420.0,102410.0,0.00625458]
[1734237674798,1.06155782,102420.0,102410.0,0.00063426]
[1734237675202,1.27961785,102420.0,102410.0,0.00063426]
[1734237675404,1.27961785,102420.0,102410.0,0.00629489]
[1734237676214,1.05833397,102420.0,102410.0,0.00629489]
[1734237676436,1.14560845,102420.0,102410.0,0.00629489]
[1734237676823,1.27966832,102420.0,102410.0,0.00629489]
[1734237677842,1.29397077,102420.0,102410.0,0.00629489]
[1734237678073,0.1512,102400.0,102390.0,0.346395]
[1734237678399,0.25025403,102400.0,102390.0,0.346395]
[1734237678603,0.25025403,102400.0,102390.0,0.3454021]
[1734237679353,0.25025403,102400.0,102390.0,0.35067534]
[1734237679561,0.17205403,102400.0,102390.0,0.43362576]
[1734237679967,0.09905403,102400.0,102390.0,0.48152576]
[1734237680168,0.09905403,102400.0,102390.0,0.69568563]
[1734237680678,0.09905403,102400.0,102390.0,0.56162576]
[1734237681036,0.09905403,102400.0,102390.0,0.72371176]
[1734237681238,0.09905403,102400.0,102390.0,0.69568563]
[1734237681406,0.12205403,102400.0,102390.0,0.72371176]
[1734237682173,0.12205403,102400.0,102390.0,0.69568563]
[1734237682610,0.12205403,102400.0,102390.0,0.56162576]
[1734237682826,0.023,102410.0,102390.0,0.58965189]
[1734237683035,0.12205403,102410.0,102400.0,0.540601]
[1734237683246,0.12205403,102410.0,102400.0,0.55082655]
[1734237683461,0.09905403,102410.0,102400.0,0.81815556]
[1734237683753,0.04081824,102420.0,102410.0,0.425393]
[1734237683929,0.13987227,102420.0,102410.0,0.425393]
[1734237684155,0.13987227,102420.0,102410.0,0.43065249]
[1734237684356,0.13987227,102420.0,102410.0,0.64766278]
[1734237684767,0.16287227,102420.0,102410.0,0.64766278]
[1734237686111,0.16287227,102420.0,102410.0,0.51360291]
[1734237689981,0.16287227,102420.0,102410.0,0.51368911]
[1734237691395,0.16287227,102420.0,102410.0,0.64774898]
[1734237691993,0.03027923,102420.0,102410.0,0.69274898]
[1734237692196,0.00027923,102420.0,102410.0,2.07283498]
[1734237692402,0.00027923,102420.0,102410.0,1.93877511]
[1734237692609,0.00027923,102420.0,102410.0,1.91074898]
[1734237693359,2.3e-07,102420.0,102410.0,2.07283498]
[1734237693580,2.3e-07,102420.0,102410.0,0.85483498]
[1734237693979,2.3e-07,102420.0,102410.0,0.82680885]
[1734237694514,2.3e-07,102420.0,102410.0,0.69274898]
[1734237694748,2.3e-07,102420.0,102410.0,0.82680885]
[1734237695344,2.3e-07,102420.0,102410.0,0.85483498]
[1734237695608,2.3e-07,102420.0,102410.0,0.82680885]
[1734237695814,2.3e-07,102420.0,102410.0,0.69274898]
[1734237697063,0.09905426,102420.0,102410.0,0.69274898]
[1734237697254,0.12205426,102420.0,102410.0,0.40868911]
[1734237697459,0.12205426,102420.0,102410.0,0.20063869]
[1734237698886,0.12205426,102420.0,102410.0,0.35063869]
[1734237707879,0.13255768,102420.0,102410.0,0.35063869]
[1734237709428,0.43275768,102420.0,102410.0,0.35063869]
[1734237709607,0.43275768,102420.0,102410.0,0.42476266]
[1734237709819,0.38275768,102420.0,102410.0,0.42476266]
[1734237710425,0.38275768,102420.0,102410.0,0.66724866]
[1734237710901,0.38275768,102420.0,102410.0,0.53318879]
[1734237711476,0.38275768,102420.0,102410.0,0.45278879]
[1734237712065,0.38275768,102420.0,102410.0,0.42476266]
[1734237712427,0.38275768,102420.0,102410.0,0.55882253]
[1734237712621,0.37225426,102420.0,102410.0,0.55882253]
[1734237712820,0.37225426,102420.0,102410.0,0.42476266]
[1734237713221,0.37225426,102420.0,102410.0,0.22946966]
[1734237713799,0.42225426,102420.0,102410.0,0.00534569]
[1734237713999,0.69532826,102420.0,102410.0,0.00534569]
[1734237714205,0.7827575,102420.0,102410.0,0.00534569]
[1734237714412,0.7297575,102420.0,102410.0,0.00534569]
[1734237714602,0.66070137,102420.0,102410.0,0.00392419]
[1734237714740,0.78555986,102420.0,102410.0,0.00392419]
[1734237714942,0.83555986,102420.0,102410.0,0.00392419]
[1734237715146,1.18819285,102420.0,102410.0,0.00392419]
[1734237715347,0.96471974,102420.0,102410.0,0.00392419]
[1734237715568,0.323112,102400.0,102390.0,0.0010759]
[1734237715779,0.45963085,102400.0,102390.0,8.61e-05]
[1734237715978,0.59082809,102400.0,102390.0,0.00503284]
[1734237717488,0.64082809,102400.0,102390.0,0.00503284]
[1734237717706,0.66382809,102400.0,102390.0,0.00503284]
[1734237718095,0.84298796,102400.0,102390.0,0.00503284]
[1734237718353,1.01891761,102400.0,102390.0,0.00503284]
[1734237718737,0.88485774,102400.0,102390.0,0.00503284]
[1734237718930,0.83485774,102400.0,102390.0,0.00503284]
[1734237719134,0.49126603,102400.0,102390.0,0.00503284]
[1734237719337,0.91376482,102400.0,102390.0,0.00503284]
[1734237719539,0.39159209,102400.0,102390.0,0.00503284]
[1734237719752,0.50578125,102400.0,102390.0,0.00503284]
[1734237719975,0.48490971,102400.0,102390.0,0.00503284]
[1734237720381,0.61603255,102400.0,102390.0,0.00503284]
[1734237720591,0.59710387,102400.0,102390.0,0.00503284]
[1734237721289,0.46598103,102400.0,102390.0,0.00503284]
[1734237721479,0.49510642,102400.0,102390.0,0.00503284]
[1734237722308,0.49506862,102400.0,102390.0,0.00503284]
[1734237723445,0.62613476,102400.0,102390.0,0.00503284]
[1734237723646,0.7411634,102400.0,102390.0,0.00503284]
[1734237723847,0.71990937,102400.0,102390.0,0.00503284]
[1734237724284,1.19716766,102400.0,102390.0,0.00503284]
[1734237724483,0.1729,102380.0,102370.0,0.0009842]
[1734237724693,0.48549487,102380.0,102370.0,0.0009842]
[1734237724888,0.49640882,102380.0,102370.0,0.0009842]
[1734237725136,0.245369,102370.0,102360.0,8.61e-05]
[1734237725368,0.34442303,102370.0,102360.0,8.61e-05]
[1734237725997,0.5853847,102370.0,102360.0,0.00019293]
[1734237726209,0.59362089,102370.0,102360.0,0.00019293]
[1734237726450,0.72462788,102370.0,102360.0,0.00019293]
[1734237726675,0.96848273,102370.0,102360.0,0.00019293]
[1734237727297,0.79372788,102370.0,102360.0,0.00019293]
[1734237727518,0.80854626,102370.0,102360.0,0.00019293]
[1734237728176,0.195407,102350.0,102340.0,8.61e-05]
[1734237728368,0.31262083,102350.0,102340.0,8.61e-05]
[1734237728575,0.37226103,102350.0,102340.0,8.61e-05]
[1734237729261,0.37226103,102350.0,102340.0,0.0010861]
[1734237729465,0.42226103,102350.0,102340.0,0.0010861]
[1734237730321,0.47430422,102350.0,102340.0,0.0010861]
[1734237730530,0.44526103,102350.0,102340.0,0.0010861]
[1734237731161,0.44526103,102350.0,102340.0,8.61e-05]
[1734237731365,0.22205403,102350.0,102340.0,0.0010861]
[1734237731569,0.41746103,102350.0,102340.0,8.61e-05]
[1734237731885,0.41846103,102350.0,102340.0,0.00445345]
[1734237732086,0.5025209,102350.0,102340.0,0.00445345]
[1734237732338,0.36846103,102350.0,102340.0,0.00445345]
[1734237732562,0.39746653,102350.0,102340.0,0.00445345]
[1734237733467,0.39746694,102350.0,102340.0,0.00445345]
[1734237733876,0.53152681,102350.0,102340.0,0.00445345]
[1734237734722,0.54182397,102350.0,102340.0,0.00445345]
[1734237736419,0.51281806,102350.0,102340.0,0.00445345]
[1734237736619,0.53820422,102350.0,102340.0,0.00445345]
[1734237738858,0.66950422,102350.0,102340.0,0.00445345]
[1734237739041,0.64051806,102350.0,102340.0,0.00445345]
[1734237739720,0.300627,102340.0,102330.0,8.61e-05]
[1734237739919,0.40250587,102330.0,102320.0,0.0010829]
[1734237740178,0.78076298,102330.0,102320.0,8.62e-05]
[1734237740380,0.7517599,102330.0,102320.0,8.62e-05]
[1734237741199,0.7517599,102330.0,102320.0,0.00025055]
[1734237741670,0.7527599,102330.0,102320.0,0.00025055]
[1734237742099,0.88681977,102330.0,102320.0,0.00025055]
[1734237742301,0.8169738,102330.0,102320.0,0.00025055]
[1734237742506,0.71791977,102330.0,102320.0,0.00025055]
[1734237743140,0.268465,102320.0,102310.0,3.371e-05]
[1734237743414,0.5015789,102320.0,102310.0,3.371e-05]
[1734237744292,0.4525789,102320.0,102310.0,3.371e-05]
[1734237744939,0.5347789,102320.0,102310.0,3.371e-05]
[1734237747364,0.5347789,102320.0,102310.0,0.00573637]
[1734237748545,0.5025789,102320.0,102310.0,0.00573637]
[1734237748975,0.4525789,102320.0,102310.0,0.00573637]
[1734237749191,0.5025789,102320.0,102310.0,0.00573637]
[1734237749706,0.36851903,102320.0,102310.0,0.00573637]
[1734237751557,0.41851903,102320.0,102310.0,0.00573637]
[1734237752120,0.20005403,102320.0,102310.0,0.00573637]
[1734237752323,0.10005403,102320.0,102310.0,0.27652037]
[1734237752529,0.15005403,102320.0,102310.0,0.135653]
[1734237752729,0.15005403,102320.0,102310.0,0.12707457]
[1734237752888,0.15005403,102320.0,102310.0,0.08391184]
[1734237753075,0.3341139,102320.0,102310.0,0.00861184]
[1734237753273,0.5295789,102320.0,102310.0,0.00861184]
[1734237753480,0.6334789,102320.0,102310.0,0.00861184]
[1734237753707,0.5334789,102320.0,102310.0,0.00861184]
[1734237754781,0.5334789,102320.0,102310.0,0.00646235]
[1734237754985,0.348503,102300.0,102290.0,0.04950919]
[1734237755280,0.268522,102290.0,102280.0,0.1900891]
[1734237755395,0.268541,102280.0,102270.0,0.09575185]
[1734237755576,0.5016549,102280.0,102270.0,0.09111645]
[1734237755996,0.4516549,102280.0,102270.0,0.09111645]
[1734237756230,0.4516549,102280.0,102270.0,0.05037698]
[1734237756429,0.46213824,102280.0,102270.0,0.05037698]
[1734237756911,0.46213824,102280.0,102270.0,0.05092925]
[1734237757214,0.46713824,102280.0,102270.0,0.05101555]
[1734237758196,0.31856,102270.0,102260.0,0.08920932]
[1734237758423,0.5516739,102270.0,102260.0,0.08920932]
[1734237759808,0.5526739,102270.0,102260.0,0.08920932]
[1734237760181,0.12305403,102270.0,102260.0,0.08920932]
[1734237760708,0.17305403,102270.0,102260.0,0.08920932]
[1734237760973,0.12305403,102270.0,102260.0,0.08920932]
[1734237762540,0.12305403,102270.0,102260.0,0.09573203]
[1734237762704,0.12305403,102270.0,102260.0,0.13631625]
[1734237763086,0.12305403,102270.0,102260.0,0.08705184]
[1734237765651,0.12305403,102270.0,102260.0,0.05073559]
[1734237767247,0.31861403,102270.0,102260.0,0.00543559]
[1734237768473,0.31861403,102270.0,102260.0,0.00552189]
[1734237768804,0.12305403,102270.0,102260.0,0.18945963]
[1734237769126,0.12305403,102270.0,102260.0,0.13439976]
[1734237769517,0.12305403,102270.0,102260.0,0.36043815]
[1734237769622,0.12305403,102270.0,102260.0,0.35946028]
[1734237770440,0.12305403,102270.0,102260.0,0.28342189]
[1734237770797,0.15305403,102270.0,102260.0,0.61306076]
[1734237771717,0.5326739,102270.0,102260.0,0.00552189]
[1734237771960,0.4826739,102270.0,102260.0,0.00552189]
[1734237772157,0.61971522,102270.0,102260.0,0.00552189]
[1734237772666,0.7818739,102270.0,102260.0,0.00552189]
[1734237772870,0.86891522,102270.0,102260.0,0.00652189]
[1734237773077,0.73485535,102270.0,102260.0,0.00652189]
[1734237773282,0.073,102260.0,102250.0,0.09962826]
[1734237773484,0.36763303,102260.0,102250.0,0.09962826]
[1734237773691,0.36763303,102260.0,102250.0,0.09863906]
[1734237773896,0.36763303,102260.0,102250.0,0.12650398]
[1734237774503,0.36763303,102260.0,102250.0,0.12750398]
[1734237776340,0.36763303,102260.0,102250.0,0.09963906]
[1734237778449,0.31763303,102260.0,102250.0,0.09963906]
[1734237778854,0.36748511,102260.0,102250.0,0.09963906]
[1734237779783,0.31748511,102260.0,102250.0,0.09963906]
[1734237780186,0.36748511,102260.0,102250.0,0.09963906]
[1734237780388,0.36748511,102260.0,102250.0,0.12760398]
[1734237780810,0.36748511,102260.0,102250.0,0.13270941]
[1734237781484,0.36748511,102260.0,102250.0,0.10474449]
[1734237781712,0.3776247,102260.0,102250.0,0.10474449]
[1734237782528,0.3276247,102260.0,102250.0,0.10374449]
[1734237782731,0.3776247,102260.0,102250.0,0.10374449]
[1734237782935,0.3786247,102260.0,102250.0,0.10374449]
[1734237783203,0.3286247,102260.0,102250.0,0.10374449]
[1734237783787,0.3286247,102260.0,102250.0,0.13211995]
[1734237785057,0.3286247,102260.0,102250.0,0.10374449]
[1734237785498,0.1330457,102260.0,102250.0,0.10374449]
[1734237785710,0.3286247,102260.0,102250.0,0.10374449]
[1734237785930,0.1330457,102260.0,102250.0,0.10374449]
[1734237786166,0.3286247,102260.0,102250.0,0.10374449]
[1734237786375,0.3286247,102260.0,102250.0,0.13211995]
[1734237786598,0.3286247,102260.0,102250.0,0.10374449]
[1734237787058,0.1330457,102260.0,102250.0,0.10374449]
[1734237787216,0.3286247,102260.0,102250.0,0.10374449]
[1734237788409,0.195625,102240.0,102200.0,0.25323061]
[1734237788585,0.245694,102200.0,102180.0,0.11035681]
[1734237788807,0.245694,102200.0,102170.0,0.11169206]
[1734237788808,0.195733,102180.0,102170.0,0.11169206]
[1734237789065,0.368752,102170.0,102160.0,0.1131135]
[1734237789289,0.468771,102160.0,102150.0,0.05255619]
[1734237789482,0.26879,102150.0,102140.0,0.06689692]
[1734237789695,1.00329219,102150.0,102140.0,0.06689692]
[1734237789906,0.95329219,102150.0,102140.0,0.06689692]
[1734237790137,1.04688927,102150.0,102140.0,0.06689692]
[1734237790484,0.97580135,102150.0,102140.0,0.06744816]
[1734237790603,0.88616377,102150.0,102140.0,0.06744816]
[1734237790789,1.03616377,102150.0,102140.0,0.06744816]
[1734237791039,0.73596377,102150.0,102140.0,0.06744816]
[1734237791209,0.05,102140.0,102130.0,0.07166846]
[1734237791398,0.8329244,102140.0,102130.0,0.07166846]
[1734237791611,0.268828,102130.0,102120.0,0.11842828]
[1734237791844,0.36788203,102130.0,102120.0,0.11842828]
[1734237792007,0.58563226,102130.0,102120.0,0.11842828]
[1734237792198,0.51400769,102130.0,102120.0,0.11842828]
[1734237792432,0.53563226,102130.0,102120.0,0.11842828]
[1734237792615,0.31788203,102130.0,102120.0,0.11842828]
[1734237792878,0.58418018,102130.0,102120.0,0.11842828]
[1734237793115,0.57918018,102130.0,102120.0,0.11842828]
[1734237793361,0.57861395,102130.0,102120.0,0.11842828]
[1734237794519,0.12205403,102130.0,102120.0,0.11842828]
[1734237794728,0.15215922,102130.0,102120.0,0.17393204]
[1734237794918,0.12323478,102130.0,102120.0,0.17393204]
[1734237795271,0.32212521,102130.0,102120.0,0.36978004]
[1734237795487,0.49445554,102130.0,102120.0,0.36978004]
[1734237795696,0.40268956,102130.0,102120.0,0.57236251]
[1734237795907,0.48943423,102130.0,102120.0,0.56978004]
[1734237796127,0.21786912,102130.0,102120.0,0.56978004]
[1734237796549,0.21786912,102130.0,102120.0,0.40296347]
[1734237796763,0.21786912,102130.0,102120.0,0.201]
[1734237796971,0.21686912,102130.0,102120.0,0.24682709]
[1734237797180,0.24686912,102130.0,102120.0,0.001]
[1734237797388,0.03,102130.0,102120.0,0.195848]
[1734237797987,0.03,102130.0,102120.0,0.441648]
[1734237798219,0.03,102130.0,102120.0,0.64423047]
[1734237798636,0.03,102130.0,102120.0,0.69313047]
[1734237798820,0.03,102130.0,102120.0,0.84313047]
[1734237798975,0.00469594,102150.0,102140.0,0.195809]
[1734237799178,0.10252619,102150.0,102140.0,0.195809]
[1734237799386,0.09960017,102150.0,102140.0,0.195809]
[1734237800223,0.10060017,102150.0,102140.0,0.195809]
[1734237800573,0.00154614,102150.0,102140.0,0.39839147]
[1734237800785,0.00154614,102150.0,102140.0,0.40283255]
[1734237800985,0.00154614,102150.0,102140.0,0.55283255]
[1734237804732,0.00171874,102150.0,102140.0,0.55283255]
[1734237806186,0.00071874,102150.0,102140.0,0.55283255]
[1734237807335,0.00071874,102150.0,102140.0,0.20258247]
[1734237807578,0.00071874,102150.0,102140.0,0.39839147]
[1734237808204,0.12277277,102150.0,102140.0,0.39839147]
[1734237809248,0.12277277,102150.0,102140.0,0.195809]
[1734237811706,0.12277277,102150.0,102140.0,0.345809]
[1734237812129,0.12277277,102150.0,102140.0,0.3473624]
[1734237814580,0.12277277,102150.0,102140.0,0.48224598]
[1734237815530,0.12277277,102150.0,102140.0,0.48069258]
[1734237815971,0.12277277,102150.0,102140.0,5.16657616]
[1734237815972,0.00071874,102150.0,102140.0,5.16657616]
[1734237816170,0.00071874,102150.0,102140.0,4.08044661]
[1734237816390,0.00071874,102150.0,102140.0,4.26173019]
[1734237816604,0.00071874,102150.0,102140.0,3.27493291]
[1734237816851,0.00071874,102150.0,102140.0,3.14993291]
[1734237817043,0.00071874,102150.0,102140.0,3.11193291]
[1734237818099,0.00071874,102150.0,102140.0,3.24681649]
[1734237818310,0.00071874,102150.0,102140.0,2.97704933]
[1734237818525,0.00071874,102150.0,102140.0,3.11193291]
[1734237819132,0.00248386,102170.0,102150.0,0.15]
[1734237819382,0.00248386,102170.0,102160.0,0.48065458]
[1734237821722,0.00248386,102170.0,102160.0,0.345771]
[1734237821926,0.349371,102160.0,102150.0,0.00016426]
[1734237822137,0.26879,102150.0,102140.0,0.0010838]
[1734237822351,0.26879,102150.0,102120.0,0.2458]
[1734237822352,0.023,102130.0,102120.0,0.2458]
[1734237822554,0.31910607,102130.0,102120.0,0.2467935]
[1734237822768,0.12205403,102130.0,102120.0,0.2537841]
[1734237822972,0.1232781,102130.0,102120.0,0.2527906]
[1734237823409,0.1232781,102130.0,102120.0,0.24634614]
[1734237823623,0.1232781,102130.0,102120.0,0.44860272]
[1734237823917,0.1232781,102130.0,102120.0,0.59860272]
[1734237823918,0.12205403,102130.0,102120.0,0.59860272]
[1734237824055,0.12205403,102130.0,102120.0,0.59219414]
[1734237824305,0.12205403,102130.0,102120.0,0.59864157]
[1734237824538,0.001,102130.0,102120.0,0.59864157]
[1734237826788,0.001,102130.0,102120.0,0.5990081]
[1734237828367,0.001,102130.0,102120.0,0.5990944]
[1734237829545,0.001,102130.0,102120.0,0.59696746]
[1734237830930,0.001,102130.0,102120.0,0.79944634]
[1734237831154,0.0001726,102150.0,102140.0,0.195809]
[1734237831357,0.09922663,102150.0,102140.0,0.20009474]
[1734237831725,0.0001726,102150.0,102140.0,0.35009474]
[1734237831915,0.0001726,102150.0,102140.0,0.35222847]
[1734237835113,0.0001726,102150.0,102140.0,0.35259492]
[1734237835312,0.0001726,102150.0,102140.0,0.85259492]
[1734237840058,0.0001726,102150.0,102140.0,1.0550738]
[1734237840325,0.0001726,102150.0,102140.0,6.25376138]
[1734237840531,6e-07,102150.0,102140.0,6.3302285]